{"text_format":"1","workbook":"xlsx","n_sheets":1,"sheets":["1111"],"not_rendered":{"charts":0,"images":0,"macros":0,"external_links":0,"defined_names":1,"comments":0,"pivot_tables":0},"unopened":[],"bounds":{"document_bytes":16777216,"sheet_cells":100000,"rows_first":2000,"rows_last":500,"rows_between":2000,"halvings":0,"cell_chars":16384,"cell_head_chars":4096},"cells_cut":0,"cells_raw":0,"read":"whole","date_system":"1900"}

{"sheet":"1111","index":0,"n_rows":456,"n_cols":12,"rows_kept":456,"cut":false,"hidden":false,"merged":[]}
[]
[null,null,"المطلوب: معادلة لنسخ الدرجة بالعمود (L) الى العمود (D) حسب رقم الجلوس"]
[null,null,"شاكرين حسن تعاونكم معنا"]
[]
[null,"رقم\nجلوس","اسم الطالب","المشرف","مشرف\n(80)","شفهي\n(20)","مشرف\n(80)","شفهي\n(20)",null,"رقم\nجلوس","اسم الطالب","الدرجة"]
[]
[null,2003,"ابراهيم اشرف ابراهيم المغاورى",{"$f":"IFERROR(VLOOKUP(B7,$J$7:$L$456,3,0),\"\")","v":"غ"},"غ",5,"غ",5,"",2003,"ابراهيم اشرف ابراهيم المغاورى","غ"]
[null,2006,"ابراهيم محمد ابراهيم عبدالسميع",{"$f":"IFERROR(VLOOKUP(B8,$J$7:$L$456,3,0),\"\")","v":"غ"},"غ",6,"غ",6,null,2006,"ابراهيم محمد ابراهيم عبدالسميع","غ"]
[null,2008,"ابراهيم محمد ابراهيم محمد سعيد","",54,10,"غ",15,null,2010,"احمد اشرف محمد شلبى\n","غ"]
[null,2009,"احمد اشرف فاروق محمد عفيفى سعد","",50,15,50,15,null,2011,"احمد السيد احمد ابوشعيشع فرج",120]
[null,2010,"احمد اشرف محمد شلبى","غ",46,20,40,15,null,2012,"احمد السيد صلاح بسيونى","غ"]
[null,2011,"احمد السيد احمد ابوشعيشع فرج",120,42,null,30,15,null,2013,"احمد السيد على حسن الحلوانى","غ"]
[null,2012,"احمد السيد صلاح بسيونى","غ",38,null,20,15,null,2015,"احمد السيد موسي حسن",150]
[null,2013,"احمد السيد على حسن الحلوانى","غ",34,null,10,15,null,2022,"احمد داود ابراهيم صديق محمود",100]
[null,2014,"احمد السيد مرسى محمد عليدين","",30,null,0,15,null,2023,"احمد رأفت حامد محمد عبده",150]
[null,2015,"احمد السيد موسي حسن",150,54,10,60,15,null,2024,"احمد رأفت عبدالفتاح محمد شرف",180]
[null,2016,"احمد الشحات عنتر بهجات","",50,15,50,15,null,2025,"احمد رأفت محمد عبدالحميد","غ"]
[null,2017,"احمد ايهاب رجب رجب غله","",46,20,40,15,null,2026,"احمد رجب احمد محمد رخا","غ"]
[null,2018,"احمد جمال محمد سعد نصار عقله","",42,25,30,15,null,2030,"احمد سامى عبدالسلام احمد شحاته","غ"]
[null,2019,"احمد حسن على محمد فايد","",38,null,20,15,null,2031,"احمد سعدالدين محمد سليمان\n","غ"]
[null,2020,"احمد حسنى عبدالمقصود معوض","",34,null,10,15,null,2040,"احمد على عبده الابيني","غ"]
[null,2021,"احمد حمدى عبدالمنصف حامد شلبى","",30,40,0,15,null,2042,"احمد عماد عفيفى عبدالمجيد","غ"]
[null,2022,"احمد داود ابراهيم صديق محمود",100,54,10,60,15,null,2043,"احمد عمادالدين محمد بدر عبد الرحمن",115]
[null,2023,"احمد رأفت حامد محمد عبده",150,50,15,50,15,null,2051,"احمد محمد احمد محمد",110]
[null,2024,"احمد رأفت عبدالفتاح محمد شرف",180,46,20,40,15,null,2055,"احمد محمد رياض سيداحمد راشد",155]
[null,2025,"احمد رأفت محمد عبدالحميد","غ",42,25,30,15,null,2057,"احمد محمد عبدالفتاح اسماعيل عمر","غ"]
[null,2026,"احمد رجب احمد محمد رخا","غ",38,30,20,15,null,2058,"احمد محمد محمد ابواليزيد الصفطاوى","غ"]
[null,2027,"احمد رضا احمد الشناوى","",34,35,10,15,null,2059,"احمد محمد محمد عبدالعزيز محمد","غ"]
[null,2028,"احمد رفعت عبدالمعطى إبراهيم","",30,40,0,15,null,2063,"احمد هشام السيد محمد\n","غ"]
[null,2029,"احمد رمضان رمضان محمد حماد","",54,10,60,15,null,2064,"احمد وائل احمد فتحى عبدالسميع",110]
[null,2030,"احمد سامى عبدالسلام احمد شحاته","غ",50,15,50,15,null,2065,"ادهم عبدالمقصود جبر عبدالمقصود","غ"]
[null,2031,"احمد سعدالدين محمد سليمان","غ",46,20,40,15,null,2066,"اسامه عبدالرازق عبدالقوى محمد","غ"]
[null,2032,"احمد سعيد سيد العربي عيسى","",42,25,30,15,null,2068,"اسلام جمال محمد ابراهيم سالم","غ"]
[null,2033,"احمد سمير جلال شمس الدين","",38,30,20,15,null,2069,"اسلام عبدالرؤف عبدالقادر عبدالرؤف شعيب\n",180]
[null,2034,"احمد عادل الشناوى محمد ابوالمجد بدوى","",34,35,10,15,null,2070,"اسلام عماد حمدى على البراشى",185]
[null,2035,"احمد عاطف ابراهيم عبدالحليم على حسين","",30,40,0,15,null,2073,"اسماء عادل محمد عبدالهادى",140]
[null,2036,"احمد عبدالرحمن محمد على عمر","",54,10,60,15,null,2076,"اسماء على صلاح محمد على فرج",170]
[null,2037,"احمد عبدالله عبدالمنعم غازى البسيونى","",50,15,50,15,null,2083,"الاء وديع فايز عبدالحميد رمضان",180]
[null,2038,"احمد على احمد سليمان","",46,20,40,15,null,2084,"الحسين محمد السيد احمد عارف",110]
[null,2039,"احمد على حسن جازيه","",42,25,30,15,null,2086,"السيد احمد السيد احمد نصر",170]
[null,2040,"احمد على عبده الابيني","غ",38,30,20,15,null,2087,"السيد عبده محمد عبده ابوحبسه",175]
[null,2041,"احمد على فؤاد رشوان","",34,35,10,15,null,2088,"السيد محمد عيد الفيومى","غ"]
[null,2042,"احمد عماد عفيفى عبدالمجيد","غ",30,40,0,15,null,2089,"السيد محمد معروف محمد سليمان","غ"]
[null,2043,"احمد عمادالدين محمد بدر عبد الرحمن",115,54,10,60,15,null,2090,"امال السيد محمد القرضاوى",140]
[null,2044,"احمد غلاب عمر عبدالمقصود ابوغلاب","",50,15,50,15,null,2096,"امل محمد محمد الملاح","غ"]
[null,2045,"احمد كرم سعيد محمود","",46,20,40,15,null,2101,"اميره محمد عبدالنبى يوسف",160]
[null,2046,"احمد لطفى توفيق الجمال","",42,25,30,15,null,2102,"امينه عزب حفنى حفنى محمد\n","غ"]
[null,2047,"احمد مجدى عبدالغفار السيد حبيب","",38,30,20,15,null,2105,"ايات مصطفى السعيد عوض",180]
[null,2048,"احمد مجدى عبدالفتاح عبدالرحمن","",34,35,10,15,null,2109,"ايمن السيد عطيه عبدالحميد منصور",170]
[null,2049,"احمد محمد ابراهيم صحصاح","",30,40,0,15,null,2110,"ايمن محمد احمد على هنه","غ"]
[null,2050,"احمد محمد ابراهيم محمد محمود","",54,10,60,15,null,2112,"ايه بكر عبدالله عبدالرازق عبدالقادر",140]
[null,2051,"احمد محمد احمد محمد",110,50,15,50,15,null,2115,"ايه عباس السيد عباس مرجان",120]
[null,2052,"احمد محمد الحسينى عوض الشامي","",46,20,40,15,null,2118,"ايه عبيد محمد ابراهيم ابومنتصر",170]
[null,2053,"احمد محمد الدسوقى على مصطفى","",42,25,30,15,null,2119,"ايه موسى مصطفى فهمى متولى","غ"]
[null,2054,"احمد محمد خليل محمد خليل","",38,30,20,15,null,2120,"ايهاب احمد محمد حسن ابراهيم",170]
[null,2055,"احمد محمد رياض سيداحمد راشد",155,34,35,10,15,null,2121,"ايهاب عبدالرحمن ابراهيم عبدالرحمن سرور",150]
[null,2056,"احمد محمد عبدالبارى مجاهد","",30,40,0,15,null,2124,"بسنت السيد عماد مغازى الخطيب",172]
[null,2057,"احمد محمد عبدالفتاح اسماعيل عمر","غ",50,15,75,15,null,2126,"بسنت يوسف بسيونى يوسف الداوودى","غ"]
[null,2058,"احمد محمد محمد ابواليزيد الصفطاوى","غ",54,10,60,15,null,2128,"بكر احمد يوسف احمد","غ"]
[null,2059,"احمد محمد محمد عبدالعزيز محمد","غ",50,15,50,15,null,2129,"بلال جمال عبدالمعطى شريف السيد","غ"]
[null,2060,"احمد محمد مساعد على سعدالله","",46,20,40,15,null,2132,"تسنيم عيد على حسين جبر","غ"]
[null,2061,"احمد محمود اسماعيل عبدالله الحناوى","",42,25,30,15,null,2134,"تقى حسنى السيد عبدالغفار",170]
[null,2062,"احمد مصطفى مصطفى دياب","",38,30,20,15,null,2137,"جهاد سمير شديد محمد الزهيرى",170]
[null,2063,"احمد هشام السيد محمد","غ",34,35,10,15,null,2138,"حاتم احمد عبدالقادر احمد محمد رمضان","غ"]
[null,2064,"احمد وائل احمد فتحى عبدالسميع",110,30,40,0,15,null,2142,"حازم فتحى عبدالرؤف عبدالعال","غ"]
[null,2065,"ادهم عبدالمقصود جبر عبدالمقصود","غ",54,10,60,15,null,2144,"حبيبه عيد على حسين جبر"]
[null,2066,"اسامه عبدالرازق عبدالقوى محمد","غ",50,15,50,15,null,2147,"حسام حسن عبدالرحمن حسن رشوان",120]
[null,2067,"اسامه محمد حسين جمال ياسين","",46,20,40,15,null,2148,"حسام خلف محمد خلف",170]
[null,2068,"اسلام جمال محمد ابراهيم سالم","غ",42,25,30,15,null,2150,"حسام سليمان رمضان عطيه","غ"]
[null,2069,"اسلام عبدالرؤف عبدالقادر عبدالرؤف شعيب",180,38,30,20,15,null,2156,"حسنى سمير عرنوس مصطفى","غ"]
[null,2070,"اسلام عماد حمدى على البراشى",185,34,35,10,15,null,2159,"حسين محمد محمود طه","غ"]
[null,2071,"اسلام مصطفى عز محمد الزيطة",{"$f":"IFERROR(VLOOKUP(B72,$J$7:$L$456,3,0),\"\")","v":""},30,40,0,15,null,2167,"داليا احمد مرسى السيد ابوالنور","غ"]
[null,2072,"اسماء جمال توفيق محمود","",54,10,60,15,null,2168,"داليا حسين محمد لطفى حسين",160]
[null,2073,"اسماء عادل محمد عبدالهادى",140,50,15,50,15,null,2170,"رحاب شحاته محمد شعبان نصار",170]
[null,2074,"اسماء علاء محمد شاهين","",46,20,40,15,null,2174,"رضا عبدالمجيد عبدالعزيز مهيا","غ"]
[null,2075,"اسماء على حسن يوسف غزي","",42,25,30,15,null,2176,"رنا ابراهيم عطيه العمروسي","غ"]
[null,2076,"اسماء على صلاح محمد على فرج",170,38,30,20,15,null,2178,"روان احمد محمد احمد على",170]
[null,2077,"اشرف محمود احمد محمد قناوى","",34,35,10,15,null,2181,"روان عبدالرسول يحيى محمد احمد فضل الله",150]
[null,2078,"اكرم على سعد كشك ","",30,40,0,15,null,2182,"زياد محمد سيد محمود","غ"]
[null,2079,"اكرم محب عبدالسلام السيد سليمان","",54,10,60,15,null,2184,"ساره عبده احمد احمد بلتاجي","غ"]
[null,2080,"الاء السيد محمد محمود خطاب","",50,15,50,15,null,2185,"ساره فوزى محمد غازى عيسى","غ"]
[null,2081,"الاء محمد السيد عبدالمؤمن","",46,20,40,15,null,2187,"سامح محمود صالح متولى\n","غ"]
[null,2082,"الاء محمد حسين محمود حسين","",42,25,30,15,null,2188,"سراج علاءالدين عفت احمد على",170]
[null,2083,"الاء وديع فايز عبدالحميد رمضان",180,38,30,20,15,null,2190,"سلمى طارق محمد اسماعيل",175]
[null,2084,"الحسين محمد السيد احمد عارف",110,34,35,10,15,null,2191,"سلوى سمير فرح محمد فرح","غ"]
[null,2085,"السعيد عمادالدين السعيد محمد","",30,40,0,15,null,2192,"سيف الدين سعد زكى الامبابى","غ"]
[null,2086,"السيد احمد السيد احمد نصر",170,54,10,60,15,null,2193,"شروق احمد سيداحمد متولى الشامى",150]
[null,2087,"السيد عبده محمد عبده ابوحبسه",175,50,15,50,15,null,2195,"شريف احمد السيد احمد متولى","غ"]
[null,2088,"السيد محمد عيد الفيومى","غ",46,20,40,15,null,2200,"صابر سلامه صابر عامر","غ"]
[null,2089,"السيد محمد معروف محمد سليمان","غ",42,25,30,15,null,2201,"صابرين خالد عمر عامر","غ"]
[null,2090,"امال السيد محمد القرضاوى",140,38,30,20,15,null,2202,"صلاح فوزى محمد سالم مدين","غ"]
[null,2091,"امانى الشحات محمود رحيم اسماعيل","",34,35,10,15,null,2203,"صلاح ناصر صلاح عبدالمقصود","غ"]
[null,2092,"امانى حسين محمد على البيطاني","",30,40,0,15,null,2205,"طارق احمد على عبدالجواد","غ"]
[null,2093,"امانى يمانى بكرى يمانى محمود","",54,10,60,15,null,2206,"طاهر راضى سيد محمد",170]
[null,2094,"امجد احمد ابوالمجد الشامى","",50,15,50,15,null,2209,"عادل حماده يوسف محمود الفتيانى","غ"]
[null,2095,"امل عبدالعزيز محمد الشهاوى","",46,20,40,15,null,2210,"عاصم خيرى عبدالجواد على عبدالرؤف","غ"]
[null,2096,"امل محمد محمد الملاح","غ",42,25,30,15,null,2213,"عبدالحميد طارق عبدالحميد عبدالعظيم السيد","غ"]
[null,2097,"امل وائل حسن عبدالعزيز حسن ابراهيم","",38,30,20,15,null,2215,"عبدالرحمن السيد اسماعيل على عيسوى",180]
[null,2098,"اميره السيد توفيق عبدالحميد هليل",110,34,35,10,15,null,2216,"عبدالرحمن جمال عبد الرازق محمد سعيد","غ"]
[null,2099,"اميره حسين فؤاد الطراسى","",30,40,0,15,null,2217,"عبدالرحمن جمال على محمد فضه","غ"]
[null,2100,"اميره عادل عبدالحكيم عبدالحميد السيد","",54,10,60,15,null,2218,"عبدالرحمن حمدى محمد عبداللطيف","غ"]
[null,2101,"اميره محمد عبدالنبى يوسف",160,50,15,50,15,null,2219,"عبدالرحمن طارق فتحى ابراهيم على محمود","غ"]
[null,2102,"امينه عزب حفنى حفنى محمد","غ",46,20,40,15,null,2223,"عبدالرحمن علاء الدين فتح الله محمد السقا","غ"]
[null,2103,"انجى احمد محمود احمد السويدى","",42,25,30,15,null,2226,"عبدالرحمن محمد احمد ابو عموه",150]
[null,2104,"ايات محمد السيد السيد ابراهيم","",38,30,20,15,null,2228,"عبدالرحمن محمد بيومى محمد مرعى","غ"]
[null,2105,"ايات مصطفى السعيد عوض",180,34,35,10,15,null,2230,"عبدالعزيز عادل عبده ابراهيم عجيز","غ"]
[null,2106,"ايمان خالد فهمى على الجندى","",30,40,0,15,null,2231,"عبدالعزيز محمد عبدالرؤف رشدان","غ"]
[null,2107,"ايمان عادل ابراهيم الرفاعى الخلاوى","",54,10,60,15,null,2233,"عبدالفتاح عماد عبدالفتاح السياف محمد","غ"]
[null,2108,"ايمان محمد مصطفى مسعد الكفافى","",50,15,50,15,null,2234,"عبدالفتاح محمود عبدالفتاح البرى",100]
[null,2109,"ايمن السيد عطيه عبدالحميد منصور",170,46,20,40,15,null,2235,"عبدالله السيد محمد احمد جاديه",170]
[null,2110,"ايمن محمد احمد على هنه","غ",42,25,30,15,null,2236,"عبدالله جابر عبدالله سلامه",170]
[null,2111,"ايه السيد محمود احمد","",38,30,20,15,null,2237,"عبدالله عبدالحليم حسن عثمان عمران",150]
[null,2112,"ايه بكر عبدالله عبدالرازق عبدالقادر",140,34,35,10,15,null,2238,"عبدالمجيد رضا عبدالمجيد حسن",170]
[null,2113,"ايه خالد السيد اسماعيل الفقى","",30,40,0,15,null,2239,"عبدالمنعم ابراهيم عبدالمنعم محمد المهدى","غ"]
[null,2114,"ايه طارق السيد احمد عامر","",54,10,60,15,null,2241,"عصام ابراهيم محمد المغربي",100]
[null,2115,"ايه عباس السيد عباس مرجان",120,50,15,50,15,null,2253,"عمر خالد السيد صقر","غ"]
[null,2116,"ايه عبد العال احمد رضوان عبدون","",46,20,40,15,null,2256,"عمر عماد محمد عبدالوهاب","غ"]
[null,2117,"ايه عبدالمطلب بشير محمد","",42,25,30,15,null,2258,"عمرو عادل عبدالمحسن وهيبى",180]
[null,2118,"ايه عبيد محمد ابراهيم ابومنتصر",170,38,30,20,15,null,2266,"فهد احمد عبده محمد",175]
[null,2119,"ايه موسى مصطفى فهمى متولى","غ",34,35,10,15,null,2267,"فهد عصام حسن سيد مندوه",105]
[null,2120,"ايهاب احمد محمد حسن ابراهيم",170,30,40,0,15,null,2272,"كريم محمد محمود احمد على\n",180]
[null,2121,"ايهاب عبدالرحمن ابراهيم عبدالرحمن سرور",150,35,15,35,15,null,2277,"لؤى محمود عثمان القفاص",140]
[null,2122,"ايهاب عبدالسلام عبدالحميد سيداحمد","",54,10,60,15,null,2284,"محمد ابراهيم محمد السيد سيداحمد",170]
[null,2123,"باسل محمد امين على خليل","",50,15,50,15,null,2294,"محمد اسامه مبروك محمد عوض الله","غ"]
[null,2124,"بسنت السيد عماد مغازى الخطيب",172,46,20,40,15,null,2299,"محمد السيد عبدالفتاح عبدالجواد",110]
[null,2125,"بسنت سعيد سيد محمد عبد البارى","",42,25,30,15,null,2306,"محمد جمال عبدالحميد عبدربه","غ"]
[null,2126,"بسنت يوسف بسيونى يوسف الداوودى","غ",38,30,20,15,null,2309,"محمد حمدان السيد حمد زغيمر","غ"]
[null,2127,"بسيونى محمد انور حافظ عيسى","",34,35,10,15,null,2319,"محمد صابر محمد اسماعيل",175]
[null,2128,"بكر احمد يوسف احمد","غ",30,40,0,15,null,2320,"محمد صلاح الدين مصطفى وهمان","غ"]
[null,2129,"بلال جمال عبدالمعطى شريف السيد","غ",34,35,10,15,null,2324,"محمد عبدالحميد ابراهيم محمد عبدربه","غ"]
[null,2130,"بلال محمد محمود محمد على","",30,40,0,15,null,2349,"محمد مستور راغب مسوف\n","غ"]
[null,2131,"تسنيم احمد عبدالرحمن مصطفى الشيخ على","",54,10,60,15,null,2364,"محمود السيد شاذلى بسيونى شاذلى","غ"]
[null,2132,"تسنيم عيد على حسين جبر","غ",50,15,50,15,null,2366,"محمود برهامى حامد عبدالله محمد",170]
[null,2133,"تقى جمال صباح عبده السعدنى","",46,20,40,15,null,2373,"محمود طارق عبدالمجيد بغدادى محمد",180]
[null,2134,"تقى حسنى السيد عبدالغفار",170,42,25,30,15,null,2375,"محمود عطيه احمد الدسوقى حسين","غ"]
[null,2135,"توحه فتوح سليمان حسن السماحى",{"$f":"IFERROR(VLOOKUP(B136,$J$7:$L$456,3,0),\"\")","v":""},38,30,20,15,null,2376,"محمود فرج عبدالمنعم المتولى الحسانى ","غ"]
[null,2136,"جمال عبدالله اسماعيل ابو حسين","",34,35,10,15,null,2377,"محمود محمد ابراهيم على الشرقاوى","غ"]
[null,2137,"جهاد سمير شديد محمد الزهيرى",170,30,40,0,15,null,2378,"محمود محمد حسن حامد غانم",160]
[null,2138,"حاتم احمد عبدالقادر احمد محمد رمضان","غ",54,10,60,15,null,2379,"محمود محمد محمود ابراهيم فهمى","غ"]
[null,2139,"حاتم عادل محمد محمد خضر","",50,15,50,15,null,2382,"مراد محمد عبدالحميد ابونار","غ"]
[null,2140,"حاتم محمد ابراهيم حسن","",46,20,40,15,null,2383,"مروان ابراهيم اسماعيل محمود دويدار","غ"]
[null,2141,"حازم احمد حسن عبده محمد","",42,25,30,15,null,2384,"مروان عبدالنبى ابوزيد عبدالسلام",180]
[null,2142,"حازم فتحى عبدالرؤف عبدالعال","غ",38,30,20,15,null,2386,"مريم السيد السيد احمد المتولى بدر",170]
[null,2143,"حامد درويش عوض حموده","",34,35,10,15,null,2388,"مريم على السيد محمد خليل",160]
[null,2144,"حبيبه عيد على حسين جبر",0,30,40,0,15,null,2393,"مصطفى حسام جمعه حسن","غ"]
[null,2145,"حذيفه محمد احمد السيد","",54,10,60,15,null,2394,"مصطفى حسام قرنى احمد",180]
[null,2146,"حسام جمعه ابراهيم محمد","",50,15,50,15,null,2398,"مصطفى فتحى عبدالمولى نعمت الله\n",180]
[null,2147,"حسام حسن عبدالرحمن حسن رشوان",120,46,20,40,15,null,2399,"مصطفى ماهر عبدالكريم عبدالعاطى","غ"]
[null,2148,"حسام خلف محمد خلف",170,42,25,30,15,null,2404,"مصطفى محمود احمد عبدالشافى","غ"]
[null,2149,"حسام رضا حسن شمه","",38,30,20,15,null,2405,"مصطفى محمود رزق عبدالعزيز عبده موافى",150]
[null,2150,"حسام سليمان رمضان عطيه","غ",34,35,10,15,null,2406,"مصطفى محمود عبدالحميد عطوان","غ"]
[null,2151,"حسن احمد محمد انور الشيل","",30,40,0,15,null,2407,"مصطفى محمود محمد طه",170]
[null,2152,"حسن خالد حجاج عبدالله","",54,10,60,15,null,2408,"مصطفى هشام جابر سيد احمد","غ"]
[null,2153,"حسن فتحى حسن على زلط","",50,15,50,15,null,2410,"منال صلاح محمد على",150]
[null,2154,"حسن محمد عياد محمود عياد","",46,20,40,15,null,2415,"منى محمد كمال محمد ابوخليفه","غ"]
[null,2155,"حسن مصطفى كمال محمد عبد المتجلى","",42,25,30,15,null,2417,"مهاب محمد على حسنين على","غ"]
[null,2156,"حسنى سمير عرنوس مصطفى","غ",38,30,20,15,null,2418,"مهند عوض محمد السيد\n",170]
[null,2157,"حسين رجب فرج عقيله","",34,35,10,15,null,2421,"ميار باسط حميده متموح","غ"]
[null,2158,"حسين عماد سيد عيسى عبدالفتاح","",30,40,0,15,null,2423,"نادر اسعد محمد احمد حلو","غ"]
[null,2159,"حسين محمد محمود طه","غ",54,10,60,15,null,2430,"ندى ناصر سيد توفيق","غ"]
[null,2160,"حلمى محمود ابراهيم الدسوقى سليمان","",50,15,50,15,null,2432,"نرمين محمد احمد ابراهيم محمد","غ"]
[null,2161,"حمدى محمد صقر عبدالهادى الشربيني","",46,20,40,15,null,2435,"نعمه ميهوب عبدالمقصود محمود الحفناوى",160]
[null,2162,"حمزه اشرف السيد الشناوى","",42,25,30,15,null,2441,"هاجر ابراهيم منصور سلمان",160]
[null,2163,"خالد احمد الشحات رجب","",38,30,20,15,null,2444,"هادى شبل عبدالله الشريف","غ"]
[null,2164,"خالد احمد زكى العليمى محمد","",34,35,10,15,null,2445,"هاشم عاصم صالح خليفه","غ"]
[null,2165,"خالد معروف عبدالخالق على الموافى","",30,40,0,15,null,2449,"هبه محمد فؤاد حمزه",180]
[null,2166,"خليفه محمد خليفه حميده","",54,10,60,15,null,2451,"هشام طه جوهرى نصر الدين","غ"]
[null,2167,"داليا احمد مرسى السيد ابوالنور","غ",50,15,50,15,null,2452,"هشام عبدالناصر سند عيد سند\n","غ"]
[null,2168,"داليا حسين محمد لطفى حسين",160,46,20,40,15,null,2454,"همت محمد احمد محمد هيكل",180]
[null,2169,"راندا احمد صبره احمد محمد","",42,25,30,15,null,2457,"ياسمين محمد عطيه ابراهيم","غ"]
[null,2170,"رحاب شحاته محمد شعبان نصار",170,38,30,20,15,null,2460,"يوستينا عبدالله سامى جرجس","غ"]
[null,2171,"رحمه حسن محمد حسن علي","",34,35,10,15,null,2461,"يوسف حسين الجعرانى احمد على عمر",120]
[null,2172,"رحيل رأفت غريب عثمان عامر",160,30,40,0,15,null,2462,"يوسف خالد عبدالستار الجرف","غ"]
[null,2173,"رضا ابوالمعاطى احمد القصير","",54,10,60,15,null,2465,"يوسف محمد عبدالجليل حامد مدكور","غ"]
[null,2174,"رضا عبدالمجيد عبدالعزيز مهيا","غ",50,15,50,15,null,2466,"ايه طارق لطفى لبيب جعفر","غ"]
[null,2175,"رمضان مصطفى حامد عبدربه","",46,20,40,15,null,2467,"عبدالرحمن ابراهيم مرزوق قطب النحراوى","غ"]
[null,2176,"رنا ابراهيم عطيه العمروسي","غ",42,25,30,15,null,2468,"كريستينا اميل ميخائيل راشد","غ"]
[null,2177,"رنا احمد السيد عبدالكريم","",38,30,20,15,null,2469,"يوسف اشرف محمد على البدهلى",130]
[null,2178,"روان احمد محمد احمد على",170,34,35,10,15,null,2098,"اميره السيد توفيق عبدالحميد هليل",110]
[null,2179,"روان عادل احمد عبداللطيف امام","",30,40,0,15,null,2172,"رحيل رأفت غريب عثمان عامر",160]
[null,2180,"روان عادل صلاح محمد حمودة","",35,15,35,15,null,2198,"شيماء محمد ابراهيم رمضان البحيرى",170]
[null,2181,"روان عبدالرسول يحيى محمد احمد فضل الله",150,54,10,60,15,null,2279,"مازن طارق رمضان محمود محمد",110]
[null,2182,"زياد محمد سيد محمود","غ",50,15,50,15,null,2355,"محمد وليد عيد علي حسانين",140]
[null,2183,"زينب عبدالمنعم عبدالموجود ابو زيد","",46,20,40,15,null,2455,"يارا محمد حسنى السيد مبارك",170]
[null,2184,"ساره عبده احمد احمد بلتاجي","غ",42,25,30,15]
[null,2185,"ساره فوزى محمد غازى عيسى","غ",38,30,20,15]
[null,2186,"سالى عبدالرازق عبدالستار عبدالقوى","",34,35,10,15]
[null,2187,"سامح محمود صالح متولى","غ",34,35,10,15]
[null,2188,"سراج علاءالدين عفت احمد على",170,30,40,0,15]
[null,2189,"سلمى ابراهيم محمد يوسف جبر","",54,10,60,15]
[null,2190,"سلمى طارق محمد اسماعيل",175,50,15,50,15]
[null,2191,"سلوى سمير فرح محمد فرح","غ",46,20,40,15]
[null,2192,"سيف الدين سعد زكى الامبابى","غ",42,25,null,15]
[null,2193,"شروق احمد سيداحمد متولى الشامى",150,38,30,20,15]
[null,2194,"شروق وليد صابر السيد عبدالحميد","",34,35,10,15]
[null,2195,"شريف احمد السيد احمد متولى","غ",30,40,0,15]
[null,2196,"شريف سعد اشرف سعد منصور الخولى","",54,10,60,15]
[null,2197,"شكرى هانى شكرى محمود الميمى","",50,15,50,15]
[null,2198,"شيماء محمد ابراهيم رمضان البحيرى",170,46,20,40,15]
[null,2199,"شيماء منير عوض الله عبد اللاهى",{"$f":"IFERROR(VLOOKUP(B200,$J$7:$L$456,3,0),\"\")","v":""},42,25,null,15]
[null,2200,"صابر سلامه صابر عامر","غ",38,30,20,15]
[null,2201,"صابرين خالد عمر عامر","غ",34,35,10,15]
[null,2202,"صلاح فوزى محمد سالم مدين","غ",30,40,0,15]
[null,2203,"صلاح ناصر صلاح عبدالمقصود","غ",54,10,null,15]
[null,2204,"ضياء اشرف ابراهيم عبدالمولى الباجورى","",50,15,null,15]
[null,2205,"طارق احمد على عبدالجواد","غ",46,20,null,15]
[null,2206,"طاهر راضى سيد محمد",170,42,25,30,15]
[null,2207,"عادل احمد عبدالمحسن خضر","",38,30,20,15]
[null,2208,"عادل البسيونى عبدالستار البسيونى","",34,35,10,15]
[null,2209,"عادل حماده يوسف محمود الفتيانى","غ",30,40,0,15]
[null,2210,"عاصم خيرى عبدالجواد على عبدالرؤف","غ",54,10,null,15]
[null,2211,"عاصم محمد عثمان عثمان حطيبه","",50,15,null,15]
[null,2212,"عاطف الفرماوى مأمون محمد بدر","",46,20,null,15]
[null,2213,"عبدالحميد طارق عبدالحميد عبدالعظيم السيد","غ",42,25,null,15]
[null,2214,"عبدالرحمن احمد محمد محمود ابراهيم يسن","",38,30,20,15]
[null,2215,"عبدالرحمن السيد اسماعيل على عيسوى",180,34,35,10,15]
[null,2216,"عبدالرحمن جمال عبد الرازق محمد سعيد","غ",30,40,0,15]
[null,2217,"عبدالرحمن جمال على محمد فضه","غ",54,10,null,15]
[null,2218,"عبدالرحمن حمدى محمد عبداللطيف","غ",50,15,null,15]
[null,2219,"عبدالرحمن طارق فتحى ابراهيم على محمود","غ",46,20,null,15]
[null,2220,"عبدالرحمن عبدالقادر عبدالقادر صالح","",42,25,null,15]
[null,2221,"عبدالرحمن عبدالهادى عبدالعزيز ابوغنيم","",38,30,20,15]
[null,2222,"عبدالرحمن عزت عبدالعاطى الصاوى محمود","",34,35,10,15]
[null,2223,"عبدالرحمن علاء الدين فتح الله محمد السقا","غ",30,40,0,15]
[null,2224,"عبدالرحمن على احمد عثمان","",54,10,60,15]
[null,2225,"عبدالرحمن على محمد عبدالهادى","",50,15,50,15]
[null,2226,"عبدالرحمن محمد احمد ابو عموه",150,46,20,40,15]
[null,2227,"عبدالرحمن محمد السيد شعبان","",42,25,30,15]
[null,2228,"عبدالرحمن محمد بيومى محمد مرعى","غ",38,30,20,15]
[null,2229,"عبدالرحمن محمد عمار مجلى عمار","",34,35,10,15]
[null,2230,"عبدالعزيز عادل عبده ابراهيم عجيز","غ",30,40,0,15]
[null,2231,"عبدالعزيز محمد عبدالرؤف رشدان","غ",54,10,60,15]
[null,2232,"عبدالعليم فوزى يوسف الشاذلى","",50,15,50,15]
[null,2233,"عبدالفتاح عماد عبدالفتاح السياف محمد","غ",46,20,40,15]
[null,2234,"عبدالفتاح محمود عبدالفتاح البرى",100,42,25,30,15]
[null,2235,"عبدالله السيد محمد احمد جاديه",170,38,30,20,15]
[null,2236,"عبدالله جابر عبدالله سلامه",170,34,35,10,15]
[null,2237,"عبدالله عبدالحليم حسن عثمان عمران",150,30,40,0,15]
[null,2238,"عبدالمجيد رضا عبدالمجيد حسن",170,35,15,35,15]
[null,2239,"عبدالمنعم ابراهيم عبدالمنعم محمد المهدى","غ",54,10,60,15]
[null,2240,"عزت محمد عزت المتولى المتولى","",50,15,50,15]
[null,2241,"عصام ابراهيم محمد المغربي",100,46,20,40,15]
[null,2242,"على ابراهيم السيد منصور سليمان","",42,25,30,15]
[null,2243,"على اشرف على السبعه","",38,30,20,15]
[null,2244,"على اشرف محمد صلاح الدين الفقي","",34,35,10,15]
[null,2245,"على المصطفى محمد ملوخيه","",34,35,10,15]
[null,2246,"على شعبان السيد على ناصف","",30,40,0,15]
[null,2247,"على قاسم نبيه الحمزاوى الحمزاوى","",54,10,60,15]
[null,2248,"على محرم محمود على منصور","",50,15,50,15]
[null,2249,"على محمد على ابراهيم الماوى","",46,20,40,15]
[null,2250,"على محمد على ابراهيم على زيد","",42,25,30,15]
[null,2251,"على محمود السيد شعبان بلتاجى","",38,30,20,15]
[null,2252,"على هلال على هلال الكيلانى","",34,35,10,15]
[null,2253,"عمر خالد السيد صقر","غ",30,40,0,15]
[null,2254,"عمر رشيد عطيه ابراهيم","",54,10,60,15]
[null,2255,"عمر عطيه موسى عوض","",50,15,50,15]
[null,2256,"عمر عماد محمد عبدالوهاب","غ",46,20,40,15]
[null,2257,"عمرو دياب مسعد بسيونى مخيمر","",42,25,30,15]
[null,2258,"عمرو عادل عبدالمحسن وهيبى",180,38,30,20,15]
[null,2259,"عمرو عبدالرحمن عبدالعال ابراهيم","",34,35,10,15]
[null,2260,"عمرو محمد شحاته عمران","",30,40,0,15]
[null,2261,"عمرو محمد عبدالحميد عبدالحفيظ موسى","",54,10,60,15]
[null,2262,"عمرو محمد محمد عبدالله جاويش","",50,15,50,15]
[null,2263,"عمرو محمد محمد محمود خلف",{"$f":"IFERROR(VLOOKUP(B264,$J$7:$L$456,3,0),\"\")","v":""},46,20,40,15]
[null,2264,"عونى مجدى حسن عبده ابو العلا","",42,25,30,15]
[null,2265,"فاطمه الزهراء حسام الدين صلاح انور","",38,30,20,15]
[null,2266,"فهد احمد عبده محمد",175,34,35,10,15]
[null,2267,"فهد عصام حسن سيد مندوه",105,30,40,0,15]
[null,2268,"قمر نصر ابراهيم حسين","",54,10,60,15]
[null,2269,"كريم عاطف عبدالفتاح محمد السيد","",50,15,50,15]
[null,2270,"كريم عصام كمال حسنين خطاب","",46,20,40,15]
[null,2271,"كريم محمد زينهم ابراهيم الشال","",42,25,30,15]
[null,2272,"كريم محمد محمود احمد على",180,38,30,20,15]
[null,2273,"كريم مصطفى عبدالرحيم مصطفى","",34,35,10,15]
[null,2274,"كمال اسامه كمال ابراهيم شجر","",30,40,0,15]
[null,2275,"كمال عصام كمال احمد سالم","",54,10,60,15]
[null,2276,"كيرلس يوسف موريس يوسف غبريال","",50,15,50,15]
[null,2277,"لؤى محمود عثمان القفاص",140,46,20,40,15]
[null,2278,"ماجده عاطف السيد على ناصف","",42,25,30,15]
[null,2279,"مازن طارق رمضان محمود محمد",110,38,30,20,15]
[null,2280,"ماهر على محمود حسن","",34,35,10,15]
[null,2281,"ماهر محمد سليمان محمد عبدالعال","",30,40,0,15]
[null,2282,"مجدى محمد عثمان موسى","",54,10,60,15]
[null,2283,"محمد ابراهيم على غازى عبدالله","",50,15,50,15]
[null,2284,"محمد ابراهيم محمد السيد سيداحمد",170,46,20,40,15]
[null,2285,"محمد ابوالفتوح احمد عبدالعزيز","",42,25,30,15]
[null,2286,"محمد احمد السيد احمد","",38,30,20,15]
[null,2287,"محمد احمد حلمى احمد","",34,35,10,15]
[null,2288,"محمد احمد سليمان محمد سليمان","",30,40,0,15]
[null,2289,"محمد احمد على توفيق","",54,10,60,15]
[null,2290,"محمد احمد فتحى ابراهيم سليمان","",50,15,50,15]
[null,2291,"محمد احمد فتحى محمود فرج ","",46,20,40,15]
[null,2292,"محمد احمد محمد عليوه","",42,25,30,15]
[null,2293,"محمد احمد يوسف عبدالله الشرنوبى","",38,30,20,15]
[null,2294,"محمد اسامه مبروك محمد عوض الله","غ",34,35,10,15]
[null,2295,"محمد اشرف احمد عبدالرحمن زعرور","",30,40,0,15]
[null,2296,"محمد اشرف عبدالفتاح عبد التواب العزب","",35,15,35,15]
[null,2297,"محمد اشرف فؤاد المسيرى","",54,10,60,15]
[null,2298,"محمد السيد عبدالرحمن ابو زيد","",50,15,50,15]
[null,2299,"محمد السيد عبدالفتاح عبدالجواد",110,46,20,40,15]
[null,2300,"محمد السيد محمد احمد الزواوى","",42,25,30,15]
[null,2301,"محمد السيد محمد احمد جادية","",38,30,20,15]
[null,2302,"محمد انس السيد رمضان","",34,35,10,15]
[null,2303,"محمد ايهاب محمد السيد رخا","",34,35,10,15]
[null,2304,"محمد جمال الدين عبدالرحمن محمد القصاص","",30,40,0,15]
[null,2305,"محمد جمال باب الفرج عبدالله","",54,10,60,15]
[null,2306,"محمد جمال عبدالحميد عبدربه","غ",50,15,50,15]
[null,2307,"محمد جمعه عبدالكريم على","",46,20,40,15]
[null,2308,"محمد حلمى محمد محمد","",42,25,30,15]
[null,2309,"محمد حمدان السيد حمد زغيمر","غ",38,30,20,15]
[null,2310,"محمد خالد على الطنطاوى","",34,35,10,15]
[null,2311,"محمد خالد محمد محمد الفقى","",30,40,0,15]
[null,2312,"محمد رضا محمد عليوه","",54,10,60,15]
[null,2313,"محمد سعد الله مأمون عبدالعال","",50,15,50,15]
[null,2314,"محمد سعد محمد ابوعيسى محمد ابوعيسى","",46,20,40,15]
[null,2315,"محمد سيداحمد محمد سيداحمد نعيم","",42,25,30,15]
[null,2316,"محمد شريف حمدى بسيونى","",38,30,20,15]
[null,2317,"محمد شعبان محمد احمد","",34,35,10,15]
[null,2318,"محمد شعبان محمد احمد هديه","",30,40,0,15]
[null,2319,"محمد صابر محمد اسماعيل",175,54,10,60,15]
[null,2320,"محمد صلاح الدين مصطفى وهمان","غ",50,15,50,15]
[null,2321,"محمد عادل البسيونى عبدالخالق","",46,20,40,15]
[null,2322,"محمد عادل بسيونى الصعيدى","",42,25,30,15]
[null,2323,"محمد عادل محمد نجا القن","",38,30,20,15]
[null,2324,"محمد عبدالحميد ابراهيم محمد عبدربه","غ",34,35,10,15]
[null,2325,"محمد عبدالرحمن سليمان نوح","",30,40,0,15]
[null,2326,"محمد عبدالعاطى عبدالرحمن شلبى","",54,10,60,15]
[null,2327,"محمد عبدالعزيز لطفى عبدالعزيز",{"$f":"IFERROR(VLOOKUP(B328,$J$7:$L$456,3,0),\"\")","v":""},50,15,50,15]
[null,2328,"محمد عبدالكريم محمد ابوزيد خليل","",46,20,40,15]
[null,2329,"محمد عبدالمقصود عبد الغفار عبد الله","",42,25,30,15]
[null,2330,"محمد عصام رمضان احمد قاعود","",38,30,20,15]
[null,2331,"محمد عصام سعد عماره اسماعيل","",34,35,10,15]
[null,2332,"محمد عصام عبدالعزيز محمد السيد","",30,40,0,15]
[null,2333,"محمد عصام محمد عطا عامر","",54,10,60,15]
[null,2334,"محمد على عبدالستار على موسى","",50,15,50,15]
[null,2335,"محمد على محمد على سيد احمد","",46,20,40,15]
[null,2336,"محمد عمرو عبدالخالق عبدالخالق جلهوم","",42,25,30,15]
[null,2337,"محمد غريب محمد محمد","",38,30,20,15]
[null,2338,"محمد فتحى محمود عبد النبى","",34,35,10,15]
[null,2339,"محمد متولى حسن على على","",30,40,0,15]
[null,2340,"محمد مجدى حسن احمد ياسو","",54,10,60,15]
[null,2341,"محمد محروص عبداللاه عبدالعال فرغلى","",50,15,50,15]
[null,2342,"محمد محفوظ امين محفوظ","",46,20,40,15]
[null,2343,"محمد محمود احمد احمد ندا","",42,25,30,15]
[null,2344,"محمد محمود محمد على سليمان","",38,30,20,15]
[null,2345,"محمد محمود منصور بيومى مشرف","",34,35,10,15]
[null,2346,"محمد محى اسماعيل محمد ابراهيم","",30,40,0,15]
[null,2347,"محمد مختار محمد محمد","",54,10,60,15]
[null,2348,"محمد مدحت مصطفى عبد اللطيف","",50,15,50,15]
[null,2349,"محمد مستور راغب مسوف","غ",46,20,40,15]
[null,2350,"محمد مصطفى احمد الشناوى","",42,25,30,15]
[null,2351,"محمد مصطفى محمد مصطفى","",38,30,20,15]
[null,2352,"محمد مصطفى محمد مطاريد","",34,35,10,15]
[null,2353,"محمد نادر عبدالفتاح حسن الصاوى","",30,40,0,15]
[null,2354,"محمد نادر يسرى محمد","",35,15,35,15]
[null,2355,"محمد وليد عيد علي حسانين",140,54,10,60,15]
[null,2356,"محمد وليد مدين خليل محمد","",50,15,50,15]
[null,2357,"محمد يحيى محمد يحيي","",46,20,40,15]
[null,2358,"محمود ابراهيم عبدالعزيز محمد شريف","",42,25,30,15]
[null,2359,"محمود احمد احمد الديب رمضان","",38,30,20,15]
[null,2360,"محمود احمد محمد احمد ابراهيم مدين","",34,35,10,15]
[null,2361,"محمود احمد محمد سالم علي",""]
[null,2362,"محمود اشرف عبدالفتاح عبدالحميد حبيب",""]
[null,2363,"محمود السيد حمدى احمد خضر",""]
[null,2364,"محمود السيد شاذلى بسيونى شاذلى","غ"]
[null,2365,"محمود السيد محمد الجناينى",""]
[null,2366,"محمود برهامى حامد عبدالله محمد",170]
[null,2367,"محمود بلال عفيفى عبدالعال هاشم",""]
[null,2368,"محمود توفيق يوسف توفيق عتاب",""]
[null,2369,"محمود جابر حامد محمد الششتاوى",""]
[null,2370,"محمود جابر محمد على رضوان",""]
[null,2371,"محمود حمزه محمد ابوالعباس محمد يوسف",""]
[null,2372,"محمود خالد سالم محمود النبراوى",""]
[null,2373,"محمود طارق عبدالمجيد بغدادى محمد",180]
[null,2374,"محمود عزت ابراهيم محمود",""]
[null,2375,"محمود عطيه احمد الدسوقى حسين","غ"]
[null,2376,"محمود فرج عبدالمنعم المتولى الحسانى ","غ"]
[null,2377,"محمود محمد ابراهيم على الشرقاوى","غ",50,15,75,15]
[null,2378,"محمود محمد حسن حامد غانم",160,50,15,75,15]
[null,2379,"محمود محمد محمود ابراهيم فهمى","غ"]
[null,2380,"محمود محمد محمود الشناوى",""]
[null,2381,"محمود مسعد السيد محمود محمد",""]
[null,2382,"مراد محمد عبدالحميد ابونار","غ"]
[null,2383,"مروان ابراهيم اسماعيل محمود دويدار","غ"]
[null,2384,"مروان عبدالنبى ابوزيد عبدالسلام",180]
[null,2385,"مريم اشرف عبدالوهاب احمد نصير",""]
[null,2386,"مريم السيد السيد احمد المتولى بدر",170]
[null,2387,"مريم طارق عبدالوارث عبدالسلام دياب",""]
[null,2388,"مريم على السيد محمد خليل",160]
[null,2389,"مريم محمد فوزى ابراهيم الصبان",""]
[null,2390,"مصطفى اسماعيل عطيه اسماعيل",""]
[null,2391,"مصطفى السعيد احمد محمود عبدالرازق خيال",{"$f":"IFERROR(VLOOKUP(B392,$J$7:$L$456,3,0),\"\")","v":""}]
[null,2392,"مصطفى السيد على حسين حسن",""]
[null,2393,"مصطفى حسام جمعه حسن","غ"]
[null,2394,"مصطفى حسام قرنى احمد",180]
[null,2395,"مصطفى سعد احمد صقر",""]
[null,2396,"مصطفى صلاح ابوضيف محمد",""]
[null,2397,"مصطفى عاطف احمد الزناتى",""]
[null,2398,"مصطفى فتحى عبدالمولى نعمت الله",180]
[null,2399,"مصطفى ماهر عبدالكريم عبدالعاطى","غ"]
[null,2400,"مصطفى مجدى نبيه محمد",""]
[null,2401,"مصطفى محمد ابراهيم عبدالرازق خيال",""]
[null,2402,"مصطفى محمد محمد يونس",""]
[null,2403,"مصطفى محمود ابوالفضل دراز",""]
[null,2404,"مصطفى محمود احمد عبدالشافى","غ"]
[null,2405,"مصطفى محمود رزق عبدالعزيز عبده موافى",150]
[null,2406,"مصطفى محمود عبدالحميد عطوان","غ"]
[null,2407,"مصطفى محمود محمد طه",170]
[null,2408,"مصطفى هشام جابر سيد احمد","غ"]
[null,2409,"معاذ رجب محمد حسن",""]
[null,2410,"منال صلاح محمد على",150]
[null,2411,"منةالله اسلام عبدالحميد كاشف الجمال",""]
[null,2412,"منةالله محمد شحاته عبداللطيف حراز",""]
[null,2413,"منى احمد محمد خلف الله",""]
[null,2414,"منى احمد محمد فرغلى جامع",""]
[null,2415,"منى محمد كمال محمد ابوخليفه","غ"]
[null,2416,"مهاب محمد حافظ ابراهيم",""]
[null,2417,"مهاب محمد على حسنين على","غ"]
[null,2418,"مهند عوض محمد السيد",170,25,20,75,15]
[null,2419,"مى عادل ابراهيم الدسوقى عبدالله عبدالعال",""]
[null,2420,"مى محمد عبدالسيد عبدالمقصود الخويسكى",""]
[null,2421,"ميار باسط حميده متموح","غ"]
[null,2422,"ميرنا احمد انور عبدالمقصود",""]
[null,2423,"نادر اسعد محمد احمد حلو","غ"]
[null,2424,"نادر نبيل عبدالعزيز عبدالمجيد حسن",""]
[null,2425,"ناديه احمد محمد حسين",""]
[null,2426,"ندا السيد احمد على السيد مصريه",""]
[null,2427,"ندا مصطفى ابراهيم محمد",""]
[null,2428,"ندى عبدالحميد احمد عبدالحميد",""]
[null,2429,"ندى عبدالعزيز عبدالهادى صيام",""]
[null,2430,"ندى ناصر سيد توفيق","غ",50,15]
[null,2431,"نرمين خالد السيد احمد",""]
[null,2432,"نرمين محمد احمد ابراهيم محمد","غ"]
[null,2433,"نسمه مسعد عبدالرحيم عياد",""]
[null,2434,"نعمه رضا فهمى عبداللطيف احمد",""]
[null,2435,"نعمه ميهوب عبدالمقصود محمود الحفناوى",160]
[null,2436,"نهى عادل محمد فتح الباب",""]
[null,2437,"نورالدين محمد خميس مصطفى محمد",""]
[null,2438,"نوران خالد محمد السعيد ابوشرابية",""]
[null,2439,"نيره امير سليمان عبدالله",""]
[null,2440,"هاجر ابراهيم المحمدى ابراهيم القط",""]
[null,2441,"هاجر ابراهيم منصور سلمان",160]
[null,2442,"هاجر احمد عبدالعال مرسى",""]
[null,2443,"هاجر احمد فتحى احمد الفطاطرى",""]
[null,2444,"هادى شبل عبدالله الشريف","غ"]
[null,2445,"هاشم عاصم صالح خليفه","غ"]
[null,2446,"هبه خميس طاهر مصطفى",""]
[null,2447,"هبه طارق عبدالحليم احمد محمد",""]
[null,2448,"هبه عبدالقادر عبدالله سلام",""]
[null,2449,"هبه محمد فؤاد حمزه",180]
[null,2450,"هدير محمد عبدالسلام ابوالنضر خليل",""]
[null,2451,"هشام طه جوهرى نصر الدين","غ"]
[null,2452,"هشام عبدالناصر سند عيد سند","غ"]
[null,2453,"هشام وليد صبرى عبدالمحفوظ هلال",""]
[null,2454,"همت محمد احمد محمد هيكل",180]
[null,2455,"يارا محمد حسنى السيد مبارك",{"$f":"IFERROR(VLOOKUP(B456,$J$7:$L$456,3,0),\"\")","v":170}]